bitfinex/quotes_ETHUSD_20250219
["timestamp","ask_amount","ask_price","bid_price","bid_amount"]
[1739992262764,0.27389639,2703.2,2702.6,3.70006]
[1739992262963,0.27389639,2703.2,2702.1,0.7764]
[1739992262964,0.83772393,2703.1,2702.1,0.7764]
[1739992263164,0.798,2702.8,2702.2,3.7006]
[1739992263364,0.03876731,2702.7,2702.3,3.70046]
[1739992263604,0.798,2702.8,2702.4,3.70032]
[1739992263784,0.03881276,2702.6,2702.4,3.70032]
[1739992263984,0.798,2702.8,2702.4,3.70032]
[1739992264272,0.03885865,2702.7,2702.2,3.70058]
[1739992264494,0.03885865,2702.7,2702.3,3.70045]
[1739992264698,0.31275504,2702.7,2702.3,3.70045]
[1739992264881,0.27389639,2702.7,2702.4,3.70039]
[1739992265080,0.03865439,2702.6,2702.4,3.70039]
[1739992265409,0.03865439,2702.6,2702.2,7.40117]
[1739992265568,0.03865439,2702.6,2702.2,3.70058]
[1739992265950,0.03865439,2702.6,2702.0,3.70085]
[1739992266109,0.03865439,2702.6,2702.3,3.70054]
[1739992266515,0.798,2702.8,2702.3,3.70054]
[1739992266818,0.798,2702.8,2702.0,0.447835]
[1739992266965,3.74177107,2702.7,2702.0,7.40177]
[1739992267161,3.70016,2702.6,2701.9,3.70108]
[1739992267367,4.57433993,2702.5,2701.8,7.40238]
[1739992267617,4.57433993,2702.5,2701.8,3.70115]
[1739992267910,3.7009,2702.1,2701.5,3.70163]
[1739992268112,0.8149,2702.0,2701.4,3.7017]
[1739992268432,0.85552235,2702.0,2701.4,3.7017]
[1739992268579,0.85552235,2702.0,2701.6,3.7015]
[1739992268776,0.85552235,2702.0,2701.8,3.70116]
[1739992268963,0.04062235,2702.0,2701.9,3.70109]
[1739992269165,0.8149,2702.3,2702.1,3.70081]
[1739992269367,0.04053754,2702.2,2702.1,3.70081]
[1739992269566,0.8149,2702.3,2701.8,0.370116]
[1739992269791,0.27320986,2702.4,2702.3,3.70055]
[1739992270024,0.7604,2702.6,2702.3,3.70055]
[1739992270166,0.7604,2702.6,2701.9,0.4071396]
[1739992270367,0.7604,2702.6,2702.5,3.70027]
[1739992270681,0.7604,2703.1,2702.4,3.70027]
[1739992270901,3.7604,2703.1,2702.5,3.7002]
[1739992271099,0.7604,2703.1,2702.5,3.7002]
[1739992271303,1.5616743,2703.1,2702.5,3.7002]
[1739992271507,3.69975,2702.9,2702.3,3.70053]
[1739992271713,3.69975,2702.9,2701.8,0.370116]
[1739992271714,3.70021,2702.6,2701.9,3.70101]
[1739992271985,4.47859,2702.5,2701.9,3.70107]
[1739992272174,0.7783,2702.5,2701.9,3.70107]
[1739992272365,3.70055,2702.3,2701.6,7.40284]
[1739992272575,0.7783,2702.2,2701.7,3.70135]
[1739992272919,0.7783,2702.2,2701.6,3.70141]
[1739992273080,0.7783,2702.2,2701.6,7.40283]
[1739992273285,0.7783,2702.2,2701.7,3.70134]
[1739992274323,1.2009151,2702.2,2701.5,3.70157]
[1739992274533,3.70085,2702.1,2701.5,3.70156]
[1739992275120,3.70016,2702.6,2701.4,3.70172]
[1739992275316,3.7007,2702.2,2701.5,3.7016]
[1739992275623,7.4015,2702.2,2701.5,3.70157]
[1739992275929,4.51873,2702.1,2701.5,3.70157]
[1739992276083,4.51873,2702.1,2701.5,3.70156]
[1739992276289,0.8179,2702.1,2701.7,3.70136]
[1739992276626,0.8179,2702.1,2701.3,0.4896023]
[1739992276777,0.8179,2702.1,2701.8,3.7012]
[1739992276977,0.8179,2702.1,2701.9,3.70103]
[1739992277182,0.8179,2702.1,2701.8,3.7012]
[1739992277382,0.8179,2702.1,2701.8,3.70114]
[1739992277884,0.8179,2702.1,2701.6,3.7014]
[1739992278190,3.70103,2702.0,2701.4,3.70169]
[1739992278405,7.40206,2702.0,2701.4,3.70169]
[1739992278702,3.70103,2702.0,2701.4,3.70169]
[1739992278887,1.269753,2702.1,2701.5,3.70157]
[1739992279092,3.70106,2702.0,2701.4,3.70178]
[1739992279503,3.70096,2702.0,2701.5,3.70155]
[1739992279704,1.269753,2702.1,2701.6,3.7014]
[1739992280016,1.269753,2702.1,2701.3,3.70182]
[1739992280182,4.1980833,2702.0,2701.3,3.70182]
[1739992280387,4.1980833,2702.0,2701.4,3.70178]
[1739992280621,0.7835,2701.9,2701.4,3.70167]
[1739992280920,4.48466,2701.9,2701.4,3.70167]
[1739992281173,4.48466,2701.9,2701.3,3.70191]
[1739992281342,3.70173,2701.5,2701.2,0.14838]
[1739992281762,0.7835,2701.7,2701.2,3.85042]
[1739992282077,1.68892343,2701.7,2701.2,0.14838]
[1739992282373,0.7835,2701.7,2701.2,0.14838]
[1739992282578,0.7835,2701.4,2701.2,0.14838]
[1739992282747,7.48529,2701.4,2701.2,0.14838]
[1739992283833,0.7835,2701.4,2701.2,0.14838]
[1739992284574,5.603958,2701.4,2701.2,0.14838]
[1739992284789,3.70192,2701.3,2701.2,0.14838]
[1739992284941,0.7835,2701.4,2701.2,0.14838]
[1739992285285,4.48532,2701.4,2701.2,0.14838]
[1739992285472,0.7835,2701.4,2701.2,0.14838]
[1739992285642,0.7835,2701.4,2701.3,3.70192]
[1739992285847,0.274,2702.1,2701.5,3.70153]
[1739992286277,0.274,2702.1,2701.6,3.70143]
[1739992286585,3.27232764,2702.0,2701.6,3.70143]
[1739992286772,0.27232764,2702.0,2701.6,3.70143]
[1739992287090,0.27232764,2702.0,2701.6,7.40287]
[1739992287388,0.27232764,2702.0,2701.6,3.70143]
[1739992287939,3.274,2702.1,2701.6,3.70143]
[1739992288187,8.119566,2702.1,2701.6,3.70143]
[1739992288339,1.418666,2702.1,2701.6,3.70149]
[1739992288539,0.7712,2702.2,2701.6,3.70149]
[1739992288769,0.7712,2702.2,2701.7,3.70136]
[1739992288972,4.47197,2702.2,2701.5,0.7799]
[1739992289181,4.47197,2702.2,2701.6,3.7014]
[1739992289342,0.7712,2702.2,2701.6,3.7014]
[1739992289537,0.7712,2702.2,2701.7,0.44813]
[1739992289742,4.47189,2702.2,2701.4,3.70168]
[1739992290051,3.70089,2702.1,2701.4,7.40337]
[1739992290461,3.70089,2702.1,2701.4,3.70168]
[1739992290658,3.97437707,2702.1,2701.4,3.70168]
[1739992290978,3.70131,2701.8,2701.2,0.14838]
[1739992291177,4.47866,2701.7,2701.2,0.14838]
[1739992291481,3.70192,2701.3,2701.2,0.14838]
[1739992291685,6.70192,2701.3,2701.2,0.14838]
[1739992292092,3.0,2701.3,2701.2,0.14838]
[1739992293374,0.27348707,2701.3,2701.2,0.14838]
[1739992294210,3.97540707,2701.3,2701.2,0.14838]
[1739992294384,5.23194378,2701.3,2701.2,0.14838]
[1739992297769,0.8115,2700.2,2699.6,3.70413]
[1739992298089,1.262979,2700.2,2699.6,3.70413]
[1739992298277,0.8115,2700.2,2699.2,0.7884]
[1739992298470,4.51493,2700.2,2699.5,3.70429]
[1739992298814,0.8115,2700.2,2699.8,3.70387]
[1739992298994,0.8115,2700.6,2699.8,0.7884]
[1739992299483,4.51446,2700.6,2699.9,3.70384]
[1739992300165,3.70296,2700.6,2699.8,0.7884]
[1739992300466,3.0,2700.7,2700.0,3.70361]
[1739992300666,0.27283822,2700.5,2699.9,3.70376]
[1739992300923,0.27283822,2700.5,2700.3,3.70321]
[1739992301131,0.27283822,2700.5,2700.4,4.073471]
[1739992301621,8.22e-06,2700.5,2700.4,4.073471]
[1739992301820,8.22e-06,2700.5,2700.4,4.858671]
[1739992302529,0.7939,2701.3,2700.0,3.70358]
[1739992302737,0.7939,2700.8,2699.8,0.7852]
[1739992302885,3.70315,2700.4,2699.8,3.7852]
[1739992303226,3.70338,2700.3,2699.8,0.7852]
[1739992303387,3.70343,2700.2,2699.8,0.7852]
[1739992303600,7.40675,2700.3,2699.8,0.7852]
[1739992303806,3.70346,2700.2,2699.8,0.7852]
[1739992304216,3.70337,2700.3,2699.8,0.7852]
[1739992304419,3.0,2700.5,2699.8,0.7852]
[1739992304742,0.749656,2700.7,2700.0,3.70363]
[1739992304906,0.7939,2700.8,2700.0,3.70363]
[1739992305098,3.70296,2700.6,2699.9,3.70372]
[1739992305313,4.49651,2700.8,2699.9,3.70372]
[1739992305539,4.49658,2700.8,2700.2,3.70334]
[1739992305740,3.70248,2700.9,2700.4,0.7577]
[1739992306109,8.21805,2701.1,2700.4,4.46084]
[1739992306308,4.51574,2701.1,2700.4,4.46084]
[1739992306631,4.51574,2701.1,2700.4,0.7577]
[1739992306809,3.70249,2700.9,2700.4,0.7577]
[1739992307008,3.70199,2701.3,2700.6,4.5088]
[1739992307358,3.70228,2701.1,2700.4,3.70305]
[1739992307548,3.70218,2701.2,2700.4,3.70305]
[1739992307717,3.70233,2701.0,2700.4,3.70305]
[1739992307921,3.70233,2701.0,2700.5,0.450905]
[1739992308407,3.70233,2701.0,2697.6,1.85196183]
[1739992308408,7.4578,2701.0,2699.5,0.822]
[1739992308745,3.0,2701.1,2700.1,0.822]
[1739992308908,0.276,2701.1,2700.5,3.70288]
[1739992309113,3.97823,2701.1,2700.5,3.70288]
[1739992309306,3.97823,2701.1,2700.5,4.443497]
[1739992309510,3.70235,2701.0,2700.5,0.740617]
[1739992309756,3.9782,2701.1,2700.5,0.740617]
[1739992309923,3.70241,2701.0,2700.5,0.740617]
[1739992310334,3.70214,2701.2,2700.5,0.740617]
[1739992310646,0.62183847,2917.7,2701.0,4.47014]
[1739992310647,3.70152,2701.6,2701.0,4.47014]
[1739992310847,6.70167,2701.5,2701.0,0.7679]
[1739992311055,3.0,2701.5,2701.0,0.7679]
[1739992311277,3.0,2701.5,2701.0,4.47023]
[1739992311484,3.702,2701.3,2701.0,0.7679]
[1739992311661,3.70252,2700.9,2700.3,4.47001]
[1739992311841,3.70235,2701.0,2700.3,0.7668]
[1739992312043,3.70235,2701.0,2700.4,4.150098]
[1739992312244,3.70207,2701.2,2700.6,3.70278]
[1739992312502,3.70193,2701.3,2700.6,3.70276]
[1739992312795,3.70206,2701.2,2700.6,3.70276]
[1739992312950,7.40393,2701.3,2700.7,3.70266]
[1739992313141,3.70193,2701.3,2700.7,3.70266]
[1739992313340,3.70209,2701.2,2700.6,4.1177378]
[1739992313564,3.70209,2701.2,2700.6,7.8205378]
[1739992313777,3.70222,2701.1,2700.6,0.4149778]
[1739992313988,3.70209,2701.2,2700.4,3.70306]
[1739992314189,3.70216,2701.2,2700.5,3.7029]
[1739992314482,0.8264,2701.4,2700.3,0.7668]
[1739992314687,4.52826,2701.4,2700.7,3.70263]
[1739992314984,0.8264,2701.4,2700.9,3.70244]
[1739992315150,4.52819,2701.4,2700.9,3.70244]
[1739992315348,4.52819,2701.4,2700.8,0.7901]
[1739992315655,3.70206,2701.2,2700.8,0.7901]
[1739992316262,3.70221,2701.1,2700.8,0.7901]
[1739992316970,3.70225,2701.1,2700.6,0.7901]
[1739992317578,3.70229,2701.1,2700.6,0.7901]
[1739992317783,3.70244,2701.0,2700.6,0.7901]
[1739992318079,3.70248,2700.9,2700.3,4.4933]
[1739992318283,3.70248,2700.9,2700.3,5.312968]
[1739992318687,3.70241,2701.0,2700.4,3.70305]
[1739992318888,3.70241,2701.0,2700.4,7.40614]
[1739992319088,3.70241,2701.0,2700.4,3.70305]
[1739992319295,7.40484,2701.0,2700.4,3.70305]
[1739992319499,3.7022,2701.1,2700.5,3.70301]
[1739992319681,3.70225,2701.1,2700.4,4.6046638]
[1739992319882,3.70195,2701.3,2700.6,0.7901]
[1739992320082,3.70195,2701.3,2700.7,3.70267]
[1739992320623,3.70215,2701.2,2700.6,0.7901]
[1739992320791,0.8264,2701.4,2700.6,1.239403]
[1739992320993,0.7516,2701.6,2700.6,0.7901]
[1739992321197,3.70132,2701.8,2701.1,3.70212]
[1739992321397,3.70157,2701.6,2701.2,0.7901]
[1739992321912,0.7516,2701.9,2701.2,0.7901]
[1739992321913,3.70172,2701.5,2701.2,0.7901]
[1739992322109,7.40347,2701.5,2700.9,4.47035]
[1739992322311,3.70172,2701.5,2700.9,4.47035]
[1739992322480,7.40345,2701.5,2700.9,4.47029]
[1739992322683,3.70137,2701.7,2700.9,0.7679]
[1739992323021,3.70222,2701.1,2700.6,0.7933]
[1739992323590,3.70179,2701.4,2700.8,3.70258]
[1739992323821,3.0,2701.4,2700.8,7.40507]
[1739992323991,3.0,2701.4,2700.9,3.70246]
[1739992324185,0.8021,2701.6,2700.6,1.24292]
[1739992324533,0.40276,2701.8,2701.1,0.8324]
[1739992324733,3.70163,2701.6,2701.1,0.8324]
[1739992325025,0.7581,2702.3,2701.4,0.7841]
[1739992325210,0.7581,2702.3,2701.8,3.70113]
[1739992325412,0.7581,2702.3,2701.6,3.70141]
[1739992325615,0.7581,2702.3,2701.8,3.70121]
[1739992325811,3.70016,2702.6,2702.0,3.70087]
[1739992325812,0.7581,2702.6,2702.0,3.70087]
[1739992326131,1.02632826,2702.7,2702.0,3.70085]
[1739992326331,4.72641826,2702.7,2702.0,3.70085]
[1739992326532,3.70016,2702.6,2702.0,3.70085]
[1739992326739,3.70036,2702.5,2701.9,0.7841]
[1739992327434,7.40043,2702.6,2701.9,4.48516]
[1739992327607,0.740043,2702.6,2701.9,0.7841]
[1739992327813,3.70056,2702.3,2701.9,0.7841]
[1739992328124,3.70056,2702.3,2701.7,0.7994]
[1739992328496,0.7835,2702.4,2701.7,0.7994]
[1739992328697,3.0,2702.6,2702.0,3.70095]
[1739992328929,0.748355,2702.5,2702.1,0.7994]
[1739992329110,3.70005,2702.7,2702.1,4.50015]
[1739992329313,3.6998,2702.9,2702.2,3.70068]
[1739992329514,3.6998,2702.9,2702.1,0.7994]
[1739992329515,3.69979,2702.9,2702.1,0.7994]
[1739992329806,3.70001,2702.7,2702.1,4.50018]
[1739992330340,4.48312,2703.0,2702.1,0.7994]
[1739992330541,3.70039,2702.5,2702.1,0.7994]
[1739992331556,3.69986,2702.8,2702.1,0.7994]
[1739992331759,3.69986,2702.8,2702.2,3.7006]
[1739992331960,7.9257861,2702.8,2702.1,0.7994]
[1739992332263,3.70012,2702.7,2702.1,0.7994]
[1739992332758,3.70015,2702.6,2702.1,0.7994]
[1739992333133,3.7,2702.7,2702.1,4.50008]
[1739992333337,3.70018,2702.6,2702.1,0.7994]
[1739992333537,4.49257961,2702.7,2702.1,0.7994]
[1739992333941,3.7,2702.7,2702.1,0.7994]
[1739992334453,0.0664,2703.2,2702.7,4.4987]
[1739992334658,0.0664,2703.2,2702.9,3.69969]
[1739992334855,0.0664,2703.2,2702.7,0.7988]
[1739992335771,3.7658,2703.2,2702.7,0.7988]
[1739992337655,3.7,2702.7,2702.3,0.8095]
[1739992338167,3.7002,2702.6,2702.0,0.7628]
[1739992338372,3.70041,2702.5,2702.0,0.7628]
[1739992338773,3.70045,2702.4,2702.0,0.7628]
[1739992338977,1.152,2702.6,2702.0,0.7628]
[1739992339185,3.70078,2702.2,2701.7,0.833]
[1739992339385,3.7008,2702.2,2701.7,0.833]
[1739992339680,3.70118,2701.9,2701.2,3.70198]
[1739992339834,0.370118,2701.8,2701.2,3.70198]
[1739992340035,3.70118,2701.9,2701.2,3.70198]
[1739992340247,3.70118,2701.9,2701.1,0.7819]
[1739992340448,3.70141,2701.7,2701.1,0.7819]
[1739992340651,0.8089,2702.0,2701.1,0.7819]
[1739992340862,3.0,2702.0,2701.3,3.70178]
[1739992341304,6.70109,2702.0,2701.3,3.70178]
[1739992341521,3.70113,2701.9,2701.3,3.70178]
[1739992341672,3.70144,2701.7,2701.1,4.484]
[1739992342501,7.40291,2701.7,2701.1,0.7819]
[1739992342719,7.40289,2701.7,2701.1,4.48408]
[1739992342915,3.70144,2701.7,2701.1,4.48408]
[1739992343286,3.70144,2701.7,2701.1,4.48401]
[1739992343621,3.70117,2701.9,2701.3,3.7019]
[1739992343830,4.11809,2702.0,2701.3,3.70184]
[1739992343976,3.70124,2701.8,2701.3,3.70184]
[1739992344309,3.70137,2701.7,2701.1,4.9694249]
[1739992344501,0.8208,2701.8,2701.1,0.7819]
[1739992344703,7.40348,2701.5,2701.1,0.7819]
[1739992344912,3.70173,2701.5,2701.1,0.7819]
[1739992345276,0.8208,2701.8,2701.1,0.7819]
[1739992345488,3.70176,2701.5,2701.1,0.7819]
[1739992348120,3.70118,2701.9,2701.4,0.8164]
[1739992349133,3.0,2702.2,2701.5,3.70152]
[1739992349340,3.97636,2702.5,2701.9,3.70109]
[1739992349638,3.70042,2702.4,2701.9,4.517739]
[1739992349834,3.70042,2702.4,2701.9,3.70109]
[1739992350065,3.7001,2702.7,2701.9,3.70101]
[1739992350345,3.70021,2702.6,2702.2,0.7641]
[1739992350494,6.70021,2702.6,2702.2,0.7641]
[1739992351042,3.70032,2702.5,2702.2,0.7641]
[1739992351245,3.70049,2702.4,2702.2,0.7641]
[1739992351395,3.70067,2702.3,2701.9,0.7728]
[1739992351995,3.70071,2702.2,2701.9,0.7728]
[1739992352836,4.51501,2702.4,2701.9,0.7728]
[1739992353024,3.70021,2702.6,2701.9,4.47387]
[1739992353216,6.70029,2702.5,2701.9,8.992382]
[1739992353538,6.70029,2702.5,2701.9,5.291312]
[1739992353738,6.70029,2702.5,2702.0,3.70096]
[1739992353943,6.70029,2702.5,2701.9,5.291312]
[1739992354124,3.0,2702.5,2702.0,3.70089]
[1739992354325,3.0,2702.5,2702.0,4.6001102]
[1739992354723,0.0656,2702.7,2702.1,3.70074]
[1739992355036,6.76562,2702.7,2702.1,7.40148]
[1739992355243,0.0656,2702.7,2702.3,0.8117]
[1739992355538,3.70022,2702.6,2702.3,0.8117]
[1739992355742,3.70022,2702.6,2702.0,0.8117]
[1739992355918,3.70028,2702.5,2702.0,0.8117]
[1739992356106,3.76573,2702.7,2702.0,4.51259]
[1739992356435,3.7002,2702.6,2702.0,5.32700994]
[1739992356840,3.70014,2702.6,2702.0,5.32700994]
[1739992357542,3.70028,2702.5,2702.0,1.62611994]
[1739992357703,3.76569,2702.7,2702.1,3.70081]
[1739992357904,0.0656,2702.7,2702.2,0.8048]
[1739992358110,0.0656,2702.7,2702.4,4.50511]
[1739992358307,0.0656,2702.7,2702.6,4.50494]
[1739992358529,0.0656,2702.7,2702.6,4.955434]
[1739992359402,0.0656,2702.7,2702.6,9.48477703]
[1739992360652,0.0656,2702.7,2702.6,5.505434]
[1739992362906,0.0656,2702.7,2702.6,5.7860207]
[1739992363107,0.0656,2702.7,2702.6,12.76536373]
[1739992363450,0.0664,2703.2,2703.1,4.45465]
[1739992363653,0.0664,2703.2,2703.1,5.00465]
[1739992364442,0.0664,2703.2,2703.1,8.00465]
[1739992365060,3.69735,2704.7,2704.0,3.69815]
[1739992365061,4.50962,2704.7,2704.0,3.69815]
[1739992365357,4.50962,2704.7,2704.1,0.781]
[1739992365358,3.69752,2704.6,2704.1,0.781]
[1739992365657,0.8123,2704.7,2704.1,0.781]
[1739992365812,4.50964,2704.7,2704.1,4.47907]
[1739992366460,0.8123,2704.7,2704.1,4.47907]
[1739992366607,4.50958,2704.7,2704.1,4.47907]
[1739992366809,0.8123,2704.7,2704.1,8.17707]
[1739992367140,3.69714,2704.8,2704.2,3.69794]
[1739992367313,8.28904647,2704.8,2704.2,3.69794]
[1739992367511,3.69728,2704.7,2704.2,3.69794]
[1739992367842,3.69741,2704.6,2704.1,0.781]
[1739992369112,3.69741,2704.6,2704.1,4.47902]
[1739992370123,4.59187647,2704.8,2704.1,4.479]
[1739992370320,3.89465647,2704.8,2704.2,3.69795]
[1739992370546,7.59186647,2704.8,2704.1,4.47906]
[1739992370739,0.89465647,2704.8,2704.1,0.781]
[1739992370924,3.69726,2704.7,2704.1,4.47908]
[1739992371121,3.69769,2704.4,2703.8,0.7993]
[1739992371315,3.69804,2704.2,2703.5,3.69885]
[1739992371510,3.69804,2704.2,2703.6,0.369885]
[1739992371728,3.69804,2704.2,2703.5,4.49809]
[1739992371948,0.8085,2704.4,2703.5,0.7993]
[1739992372247,9.13755166,2705.4,2704.3,3.69774]
[1739992372248,0.765,2704.8,2704.3,3.69774]
[1739992372446,4.46222,2704.8,2704.2,3.69794]
[1739992372636,3.69732,2704.7,2704.1,3.69807]
[1739992372808,0.765,2704.8,2704.2,3.69785]
[1739992373011,3.69666,2705.2,2704.3,4.52591]
[1739992373252,3.69644,2705.3,2704.3,4.52591]
[1739992373414,3.69699,2704.9,2704.3,4.52591]
[1739992373611,7.39411,2704.9,2704.3,4.52591]
[1739992373853,0.765,2705.0,2704.3,0.8282]
[1739992374008,3.69746,2704.6,2704.0,0.8282]
[1739992374211,3.69754,2704.5,2704.0,1.280846]
[1739992374852,3.6974,2704.7,2704.0,4.979006]
[1739992375177,3.69743,2704.6,2704.0,4.979006]
[1739992375487,3.69735,2704.7,2704.1,3.69799]
[1739992375780,3.69741,2704.6,2704.1,3.69799]
[1739992376276,3.69723,2704.8,2704.2,3.69792]
[1739992376476,4.46188,2705.0,2704.3,0.8057]
[1739992376477,3.69688,2705.0,2704.3,0.8057]
[1739992376674,3.69631,2705.4,2704.5,3.69746]
[1739992376978,3.69658,2705.2,2704.5,3.69746]
[1739992377180,3.0,2705.2,2704.5,3.69746]
[1739992377346,6.6967,2705.2,2704.6,0.8057]
[1739992377546,3.0,2705.2,2704.6,4.5031]
[1739992377772,3.0,2705.2,2704.7,3.69722]
[1739992377974,0.275,2705.6,2704.6,4.5031]
[1739992377975,0.75705197,2705.7,2704.9,3.69687]
[1739992378284,3.69602,2705.7,2705.1,3.69664]
[1739992378457,3.6963,2705.5,2704.8,4.50282]
[1739992378641,4.43555,2705.4,2704.8,4.50276]
[1739992379077,4.43555,2705.4,2704.8,0.8057]
[1739992379489,4.43555,2705.4,2704.8,4.50274]
[1739992379687,4.43555,2705.4,2704.9,3.69692]
[1739992380189,4.43555,2705.4,2704.8,4.50275]
[1739992380393,0.73924,2705.4,2704.8,4.50275]
[1739992380544,7.52478,2705.8,2704.8,8.19977]
[1739992380745,3.69637,2705.4,2704.8,4.50272]
[1739992381039,3.69637,2705.4,2704.9,3.69697]
[1739992381243,3.69571,2705.9,2705.0,0.7734]
[1739992381442,0.7758,2706.3,2705.2,3.69658]
[1739992381743,0.7758,2706.3,2705.9,3.6955]
[1739992381938,0.7758,2706.3,2705.8,3.69566]
[1739992382256,0.7847,2706.7,2705.9,3.69554]
[1739992382440,0.8325,2707.0,2705.7,0.8216]
[1739992382655,0.8325,2707.0,2706.3,4.51658]
[1739992382979,0.8325,2707.0,2706.3,0.8216]
[1739992383339,4.52669,2707.0,2706.3,4.51663]
[1739992383576,3.69426,2706.9,2706.3,4.51663]
[1739992383781,3.69449,2706.8,2706.3,0.8216]
[1739992383951,3.69465,2706.7,2706.3,0.8216]
[1739992384159,4.122095,2706.9,2706.1,3.69527]
[1739992384501,6.69433,2706.9,2706.1,3.69527]
[1739992384659,3.6944,2706.8,2706.1,3.69527]
[1739992384999,6.6943,2706.9,2706.1,3.69527]
[1739992385152,3.6947,2706.6,2706.0,0.7697]
[1739992385353,0.738926,2706.6,2706.1,3.69527]
[1739992385547,0.8325,2707.0,2706.1,3.69527]
[1739992385764,0.8325,2707.0,2706.0,0.7697]
[1739992385988,3.0,2706.9,2706.3,3.69499]
[1739992386191,0.0672,2707.0,2706.2,0.7622]
[1739992386393,3.69455,2706.7,2706.2,0.7622]
[1739992386603,6.6943,2706.9,2706.2,4.45738]
[1739992386808,7.739871,2706.9,2706.2,4.45738]
[1739992386964,7.739871,2706.9,2706.3,3.69506]
[1739992387505,3.76133,2707.0,2706.4,3.69485]
[1739992387805,0.0672,2707.0,2706.3,7.39005]
[1739992387969,3.0672,2707.0,2706.3,3.69499]
[1739992388157,0.0672,2707.0,2706.5,3.69472]
[1739992388768,0.0672,2707.0,2706.5,0.66839689]
[1739992388957,0.0672,2707.0,2706.6,3.69465]
[1739992389306,0.0672,2707.0,2706.7,4.5133]
[1739992389612,0.0672,2707.0,2706.7,0.8188]
[1739992390190,0.0672,2707.0,2706.7,4.51333]
[1739992390395,0.0672,2707.0,2706.7,0.8188]
[1739992391301,0.0672,2707.0,2706.7,4.964601]
[1739992391500,0.0672,2707.0,2706.7,1.270151]
[1739992391705,0.0672,2707.0,2706.7,4.964661]
[1739992392223,0.0672,2707.0,2706.7,1.270151]
[1739992392422,0.0672,2707.0,2706.7,0.8188]
[1739992393221,0.0672,2707.0,2706.7,4.51332]
[1739992393430,0.0672,2707.0,2706.7,0.8188]
[1739992396618,0.0672,2707.0,2706.7,8.20775]
[1739992396791,0.0672,2707.0,2706.7,4.51325]
[1739992396995,0.0672,2707.0,2706.8,3.6943]
[1739992397184,0.0672,2707.0,2706.9,3.69426]
[1739992398190,0.0672,2707.0,2706.9,4.51846]
[1739992398385,0.0672,2707.0,2706.9,7.51846]
[1739992398895,0.0672,2707.0,2706.9,4.51846]
[1739992399101,0.0672,2707.0,2706.9,6.09907089]
[1739992401617,0.0672,2707.0,2706.9,9.09907089]
[1739992401994,0.0672,2707.0,2706.9,6.09907089]
[1739992402297,0.0672,2707.0,2706.9,7.51846]
[1739992404810,0.0672,2707.0,2706.9,4.51846]
[1739992406931,0.0672,2707.0,2706.9,0.8242]
[1739992407243,0.0672,2707.0,2706.9,4.51846]
[1739992408431,0.0672,2707.0,2706.9,7.51846]
[1739992408744,0.0672,2707.0,2706.9,9.02969646]
[1739992409710,0.0672,2707.0,2706.9,6.02969646]
[1739992412934,0.0672,2707.0,2706.9,9.57969646]
[1739992415041,0.7612,2708.2,2706.9,9.57969646]
[1739992415243,0.7707,2708.4,2708.1,3.69256]
[1739992415420,0.7707,2708.4,2708.1,0.369256]
[1739992415748,0.03748931,2708.3,2708.1,0.369256]
[1739992416594,0.03748931,2708.3,2707.8,10.5524896]
[1739992416745,0.03748931,2708.3,2707.9,3.69285]
[1739992417074,0.03748931,2708.3,2708.2,3.69248]
[1739992417439,0.7674,2708.7,2708.2,3.69248]
[1739992417679,0.7674,2708.7,2708.3,0.816978]
[1739992417884,0.04062596,2708.6,2708.3,0.816978]
[1739992418454,0.04062596,2708.6,2708.4,3.6922]
[1739992418640,0.7674,2708.7,2708.4,3.6922]
[1739992418840,0.7674,2709.0,2708.4,3.6922]
[1739992419088,0.7674,2709.0,2708.7,3.69178]
[1739992419273,0.7674,2709.0,2708.5,4.5121498]
[1739992419443,0.7674,2709.0,2708.6,3.69186]
[1739992420148,0.7674,2709.0,2708.7,3.69178]
[1739992420498,0.7674,2709.0,2708.5,0.8201498]
[1739992420499,4.6211768,2709.3,2708.6,4.48085]
[1739992420663,4.6211768,2709.3,2708.6,5.61478996]
[1739992420868,4.6211768,2709.3,2708.7,3.69179]
[1739992421274,3.69113,2709.2,2708.7,3.69179]
[1739992421596,3.69113,2709.2,2708.6,1.92293996]
[1739992421750,3.69113,2709.2,2708.6,5.61480996]
[1739992421951,3.69113,2709.2,2708.7,0.930676]
[1739992423898,0.9301868,2709.3,2708.7,4.0972456]
[1739992424127,0.9301868,2709.3,2709.1,3.69125]
[1739992424128,0.1483868,2709.3,2709.1,3.69125]
[1739992424517,0.1483868,2709.3,2709.1,4.429518]
[1739992424830,0.1483868,2709.3,2709.1,8.120708]
[1739992424989,0.1483868,2709.3,2709.1,4.429458]
[1739992425187,0.1483868,2709.3,2709.2,3.69112]
[1739992425391,0.1483868,2709.3,2709.1,4.429458]
[1739992425587,0.1483868,2709.3,2709.2,4.1340658]
[1739992427004,0.18660703,2709.3,2709.2,4.1340658]
[1739992427242,0.1483868,2709.3,2709.2,4.1340658]
[1739992427820,0.1483868,2709.3,2709.2,5.4359658]
[1739992428537,0.1483868,2709.3,2709.2,4.8859658]
[1739992430201,6.8e-06,2709.3,2709.2,8.4359658]
[1739992430403,6.8e-06,2709.3,2709.2,11.6025354]
[1739992430619,6.8e-06,2709.3,2709.2,8.7089658]
[1739992431206,6.8e-06,2709.3,2709.2,9.46032282]
[1739992431918,6.8e-06,2709.3,2709.2,8.91032282]
[1739992432305,6.8e-06,2709.3,2709.2,9.46032282]
[1739992434333,6.8e-06,2709.3,2709.2,9.56032282]
[1739992434506,6.8e-06,2709.3,2709.2,10.01251292]